[Event "***Titled Tuesday 3|2 Blitz"]
[Site "Chess.com"]
[Date "2017.02.07"]
[Round "5"]
[White "sergiochess83"]
[Black "tigra"]
[Result "0-1"]
[WhiteElo "2706"]
[BlackElo "2585"]
[TimeControl "180+2"]
[EndTime "14:14:05 PST"]
[Termination "tigra won by resignation"]

1. e4 {[%clk 0:02:57.9]} 1... e6 {[%clk 0:03:00.1]} 2. d4 {[%clk 0:02:56.3]}
2... d5 {[%clk 0:03:00.8]} 3. Nd2 {[%clk 0:02:58]} 3... c5 {[%clk 0:03:01.8]} 4.
exd5 {[%clk 0:02:57.8]} 4... exd5 {[%clk 0:03:02.5]} 5. Bb5+ {[%clk 0:02:56.7]}
5... Bd7 {[%clk 0:03:03]} 6. Bxd7+ {[%clk 0:02:57.1]} 6... Nxd7 {[%clk
0:03:03.7]} 7. Ngf3 {[%clk 0:02:58.2]} 7... Ngf6 {[%clk 0:03:03.9]} 8. O-O
{[%clk 0:02:58.9]} 8... Be7 {[%clk 0:03:05]} 9. dxc5 {[%clk 0:02:53.1]} 9...
Nxc5 {[%clk 0:03:06.9]} 10. Re1 {[%clk 0:02:52.6]} 10... O-O {[%clk 0:03:07.6]}
11. Nf1 {[%clk 0:02:53.6]} 11... Re8 {[%clk 0:03:06.4]} 12. Be3 {[%clk
0:02:54.6]} 12... Nfe4 {[%clk 0:03:04.5]} 13. Ng3 {[%clk 0:02:53]} 13... Bf6
{[%clk 0:03:03.3]} 14. c3 {[%clk 0:02:45.6]} 14... Nxg3 {[%clk 0:03:00.6]} 15.
hxg3 {[%clk 0:02:44.7]} 15... Ne4 {[%clk 0:03:01.4]} 16. Bd4 {[%clk 0:02:43.7]}
16... Qc7 {[%clk 0:02:28.3]} 17. Qd3 {[%clk 0:02:20.6]} 17... a6 {[%clk
0:02:22.4]} 18. Re3 {[%clk 0:02:10.2]} 18... h6 {[%clk 0:02:14.8]} 19. Bxf6
{[%clk 0:02:02.7]} 19... Nxf6 {[%clk 0:02:15.2]} 20. Rae1 {[%clk 0:02:04.3]}
20... Re4 {[%clk 0:02:09.8]} 21. Nd2 {[%clk 0:02:02.1]} 21... Rxe3 {[%clk
0:02:09.4]} 22. Rxe3 {[%clk 0:02:04]} 22... Rd8 {[%clk 0:02:09.2]} 23. Qd4
{[%clk 0:02:03.8]} 23... Qa5 {[%clk 0:02:05.7]} 24. a4 {[%clk 0:01:43.8]} 24...
Qc7 {[%clk 0:02:01.8]} 25. Re5 {[%clk 0:01:35.2]} 25... Rd6 {[%clk 0:01:53.1]}
26. Nf3 {[%clk 0:01:23]} 26... Rb6 {[%clk 0:01:52.1]} 27. Re2 {[%clk 0:01:10.1]}
27... Rc6 {[%clk 0:01:45.8]} 28. Ne5 {[%clk 0:00:53]} 28... Re6 {[%clk
0:01:46.2]} 29. Re3 {[%clk 0:00:54.4]} 29... Qa5 {[%clk 0:01:39.7]} 30. Ng4
{[%clk 0:00:19]} 30... Ne4 {[%clk 0:01:30.4]} 31. Rf3 {[%clk 0:00:05.6]} 31...
Ng5 {[%clk 0:00:54.8]} 32. Re3 {[%clk 0:00:06]} 32... h5 {[%clk 0:00:45.6]} 33.
Ne5 {[%clk 0:00:05.9]} 33... Ne4 {[%clk 0:00:39.1]} 34. Nd3 {[%clk 0:00:06.8]}
34... Ng5 {[%clk 0:00:33.7]} 35. Nf4 {[%clk 0:00:07.3]} 35... Rxe3 {[%clk
0:00:32]} 36. Qxe3 {[%clk 0:00:08]} 36... Qxa4 {[%clk 0:00:32]} 37. f3 {[%clk
0:00:05.4]} 37... Qb5 {[%clk 0:00:15.8]} 38. Nxh5 {[%clk 0:00:05.6]} 38... Ne6
{[%clk 0:00:15.5]} 39. Qe5 {[%clk 0:00:04.2]} 39... Qxb2 {[%clk 0:00:14.6]} 40.
Qxd5 {[%clk 0:00:03.8]} 40... Qxc3 {[%clk 0:00:11.9]} 41. Qxb7 {[%clk
0:00:04.8]} 41... Qc5+ {[%clk 0:00:13]} 42. Kf1 {[%clk 0:00:03.9]} 42... Qxh5
{[%clk 0:00:14.4]} 43. Qxa6 {[%clk 0:00:05.3]} 43... Qe5 {[%clk 0:00:15.1]} 44.
f4 {[%clk 0:00:05.7]} 44... Qc7 {[%clk 0:00:15.2]} 45. Qd3 {[%clk 0:00:05.3]}
45... Qc8 {[%clk 0:00:15]} 46. Kg1 {[%clk 0:00:06.6]} 46... Nf8 {[%clk
0:00:15.9]} 47. Kh2 {[%clk 0:00:07.9]} 47... Nh7 {[%clk 0:00:17.1]} 48. Qd4
{[%clk 0:00:05.7]} 48... Nf6 {[%clk 0:00:18.1]} 49. Kg1 {[%clk 0:00:07.2]} 49...
Qe8 {[%clk 0:00:18.9]} 50. Kf2 {[%clk 0:00:07.4]} 50... Qe4 {[%clk 0:00:17.9]}
51. Qxe4 {[%clk 0:00:07.1]} 51... Nxe4+ {[%clk 0:00:18.6]} 52. Kf3 {[%clk
0:00:09]} 52... Nd6 {[%clk 0:00:18.7]} 53. g4 {[%clk 0:00:10.3]} 53... Kf8
{[%clk 0:00:20]} 54. g5 {[%clk 0:00:10.5]} 54... Ke7 {[%clk 0:00:21.2]} 55. g4
{[%clk 0:00:12.2]} 55... Ke6 {[%clk 0:00:22.5]} 56. Ke3 {[%clk 0:00:13.7]} 56...
Kd5 {[%clk 0:00:23.6]} 57. Kd3 {[%clk 0:00:14.5]} 57... g6 {[%clk 0:00:24.6]}
58. Ke3 {[%clk 0:00:15.8]} 58... Kc4 {[%clk 0:00:25.8]} 59. f5 {[%clk 0:00:14]}
59... Kd5 {[%clk 0:00:26.8]} 60. Kf4 {[%clk 0:00:09.8]} 60... Kd4 {[%clk
0:00:27.7]} 61. fxg6 {[%clk 0:00:06.2]} 61... fxg6 {[%clk 0:00:28.1]} 0-1

[Event "***Titled Tuesday 3|2 Blitz"]
[Site "Chess.com"]
[Date "2017.02.07"]
[Round "5"]
[White "jncool68"]
[Black "Kacparov"]
[Result "1/2-1/2"]
[WhiteElo "2528"]
[BlackElo "2583"]
[TimeControl "180+2"]
[EndTime "14:14:16 PST"]
[Termination "Game drawn - insufficient material"]

1. e4 {[%clk 0:03:01.9]} 1... c5 {[%clk 0:02:55.7]} 2. Nf3 {[%clk 0:03:01.8]}
2... e6 {[%clk 0:02:56.4]} 3. d4 {[%clk 0:03:02.3]} 3... cxd4 {[%clk 0:02:57.8]}
4. Nxd4 {[%clk 0:03:03.8]} 4... Nc6 {[%clk 0:02:59.2]} 5. Nc3 {[%clk 0:03:04.5]}
5... Qc7 {[%clk 0:02:58.8]} 6. Be3 {[%clk 0:03:05.5]} 6... a6 {[%clk 0:02:58.4]}
7. a3 {[%clk 0:03:06.6]} 7... Nf6 {[%clk 0:02:57.8]} 8. f4 {[%clk 0:03:07.6]}
8... d6 {[%clk 0:02:53]} 9. Qf3 {[%clk 0:03:07.6]} 9... Be7 {[%clk 0:02:50]} 10.
O-O-O {[%clk 0:03:07.7]} 10... Bd7 {[%clk 0:02:49.1]} 11. Be2 {[%clk 0:03:08.5]}
11... Rb8 {[%clk 0:02:45.6]} 12. g4 {[%clk 0:03:08.5]} 12... e5 {[%clk
0:02:37.7]} 13. Nf5 {[%clk 0:03:06.8]} 13... exf4 {[%clk 0:02:17.8]} 14. Bxf4
{[%clk 0:02:52]} 14... Bxf5 {[%clk 0:02:05.3]} 15. exf5 {[%clk 0:02:52.1]} 15...
Ne5 {[%clk 0:02:00.9]} 16. Bxe5 {[%clk 0:02:52.9]} 16... dxe5 {[%clk 0:02:02.8]}
17. g5 {[%clk 0:02:54.1]} 17... Nd7 {[%clk 0:02:02.9]} 18. Nd5 {[%clk 0:02:54]}
18... Bxg5+ {[%clk 0:02:02.4]} 19. Kb1 {[%clk 0:02:53.9]} 19... Qc6 {[%clk
0:02:02.3]} 20. Rhg1 {[%clk 0:02:50.4]} 20... Bh6 {[%clk 0:02:00.9]} 21. Bd3
{[%clk 0:02:46.5]} 21... Nf6 {[%clk 0:01:57]} 22. Be4 {[%clk 0:02:42.3]} 22...
Nxd5 {[%clk 0:01:53]} 23. Rxd5 {[%clk 0:02:42.9]} 23... Qf6 {[%clk 0:01:46.4]}
24. Qd3 {[%clk 0:02:31.3]} 24... O-O {[%clk 0:01:45.5]} 25. Rd6 {[%clk
0:02:32.2]} 25... Qh4 {[%clk 0:01:45.9]} 26. f6 {[%clk 0:02:21.7]} 26... g6
{[%clk 0:01:39.7]} 27. Bxg6 {[%clk 0:02:22.7]} 27... hxg6 {[%clk 0:01:37.7]} 28.
Rxg6+ {[%clk 0:02:23.6]} 28... Kh8 {[%clk 0:01:35.3]} 29. Rg3 {[%clk 0:02:23.2]}
29... e4 {[%clk 0:01:27.2]} 30. Qb3 {[%clk 0:02:07.3]} 30... Qf4 {[%clk
0:01:22.4]} 31. Rh3 {[%clk 0:01:57.1]} 31... Rg8 {[%clk 0:00:48.1]} 32. Ka2
{[%clk 0:01:51.3]} 32... Rbf8 {[%clk 0:00:45.9]} 33. Rd5 {[%clk 0:01:40]} 33...
Rg6 {[%clk 0:00:41.9]} 34. Qb4 {[%clk 0:01:38.7]} 34... Kg8 {[%clk 0:00:39.3]}
35. Rdh5 {[%clk 0:01:08.7]} 35... Qxf6 {[%clk 0:00:36.6]} 36. Qxe4 {[%clk
0:01:05.5]} 36... b5 {[%clk 0:00:33.2]} 37. c3 {[%clk 0:00:42.9]} 37... Bg7
{[%clk 0:00:31.3]} 38. Kb1 {[%clk 0:00:38.5]} 38... Qf1+ {[%clk 0:00:30.8]} 39.
Ka2 {[%clk 0:00:38.7]} 39... Qf6 {[%clk 0:00:30.8]} 40. Kb1 {[%clk 0:00:39.7]}
40... Qe6 {[%clk 0:00:31]} 41. Qh4 {[%clk 0:00:36.1]} 41... Rg1+ {[%clk
0:00:28.7]} 42. Kc2 {[%clk 0:00:37.2]} 42... Rg2+ {[%clk 0:00:26.3]} 43. Kb1
{[%clk 0:00:38.4]} 43... Rg1+ {[%clk 0:00:24.2]} 44. Kc2 {[%clk 0:00:39.2]}
44... Qe2+ {[%clk 0:00:23.6]} 45. Kb3 {[%clk 0:00:40.5]} 45... Qc4+ {[%clk
0:00:16.3]} 46. Qxc4 {[%clk 0:00:41.2]} 46... bxc4+ {[%clk 0:00:18.2]} 47. Kxc4
{[%clk 0:00:42.9]} 47... Rb8 {[%clk 0:00:19.2]} 48. b4 {[%clk 0:00:43.6]} 48...
Rg4+ {[%clk 0:00:20]} 49. Kb3 {[%clk 0:00:44.7]} 49... Rg6 {[%clk 0:00:20.8]}
50. a4 {[%clk 0:00:45.7]} 50... Rf8 {[%clk 0:00:18.8]} 51. b5 {[%clk 0:00:46.6]}
51... axb5 {[%clk 0:00:19.4]} 52. axb5 {[%clk 0:00:48.2]} 52... f5 {[%clk
0:00:20.7]} 53. c4 {[%clk 0:00:49.5]} 53... f4 {[%clk 0:00:21.9]} 54. Rf3 {[%clk
0:00:50.7]} 54... Bd4 {[%clk 0:00:23]} 55. c5 {[%clk 0:00:50.8]} 55... Kg7
{[%clk 0:00:22.3]} 56. Kc4 {[%clk 0:00:51.5]} 56... Be3 {[%clk 0:00:23.4]} 57.
Rd5 {[%clk 0:00:49.3]} 57... Rg1 {[%clk 0:00:23.9]} 58. b6 {[%clk 0:00:49.1]}
58... Rc1+ {[%clk 0:00:24.3]} 59. Kb5 {[%clk 0:00:50.4]} 59... Rc8 {[%clk
0:00:24.3]} 60. b7 {[%clk 0:00:46.3]} 60... R8xc5+ {[%clk 0:00:24.5]} 61. Rxc5
{[%clk 0:00:46.6]} 61... Rxc5+ {[%clk 0:00:25]} 62. Ka6 {[%clk 0:00:44.2]} 62...
Rc6+ {[%clk 0:00:24.2]} 63. Ka5 {[%clk 0:00:45.5]} 63... Rc1 {[%clk 0:00:18.8]}
64. Kb5 {[%clk 0:00:34.6]} 64... Kg6 {[%clk 0:00:13.3]} 65. Rh3 {[%clk
0:00:35.4]} 65... Rb1+ {[%clk 0:00:13.4]} 66. Kc6 {[%clk 0:00:36.1]} 66... Kg5
{[%clk 0:00:13.7]} 67. Rh8 {[%clk 0:00:35.8]} 67... f3 {[%clk 0:00:12.9]} 68.
b8=Q {[%clk 0:00:35.4]} 68... Rxb8 {[%clk 0:00:13.5]} 69. Rxb8 {[%clk
0:00:36.9]} 69... f2 {[%clk 0:00:14.7]} 70. Rb1 {[%clk 0:00:38]} 70... Kf4
{[%clk 0:00:15.6]} 71. Kd5 {[%clk 0:00:37.9]} 71... Kf3 {[%clk 0:00:16.9]} 72.
h4 {[%clk 0:00:38.5]} 72... Ke2 {[%clk 0:00:17.6]} 73. h5 {[%clk 0:00:38.5]}
73... f1=Q {[%clk 0:00:18.2]} 74. Rxf1 {[%clk 0:00:39.3]} 74... Kxf1 {[%clk
0:00:20.1]} 75. h6 {[%clk 0:00:40.1]} 75... Bxh6 {[%clk 0:00:19.9]} 1/2-1/2

[Event "***Titled Tuesday 3|2 Blitz"]
[Site "Chess.com"]
[Date "2017.02.07"]
[Round "5"]
[White "ftorodent"]
[Black "GeorgMeier"]
[Result "1/2-1/2"]
[WhiteElo "2519"]
[BlackElo "2674"]
[TimeControl "180+2"]
[EndTime "14:14:31 PST"]
[Termination "Game drawn - insufficient material"]

1. d4 {[%clk 0:03:02]} 1... e6 {[%clk 0:03:02]} 2. c4 {[%clk 0:03:02.7]} 2...
Nf6 {[%clk 0:03:03.2]} 3. Nf3 {[%clk 0:03:02.1]} 3... d5 {[%clk 0:03:04.7]} 4.
Nc3 {[%clk 0:03:01.3]} 4... Be7 {[%clk 0:03:05.6]} 5. Bf4 {[%clk 0:03:01.7]}
5... O-O {[%clk 0:03:06.7]} 6. e3 {[%clk 0:03:02.7]} 6... c5 {[%clk 0:03:07.4]}
7. dxc5 {[%clk 0:03:02.9]} 7... Bxc5 {[%clk 0:03:09.3]} 8. Qc2 {[%clk
0:03:03.4]} 8... Nc6 {[%clk 0:03:10]} 9. a3 {[%clk 0:03:03.4]} 9... Qa5 {[%clk
0:03:09.6]} 10. Rd1 {[%clk 0:03:02.7]} 10... Be7 {[%clk 0:03:09.6]} 11. Be2
{[%clk 0:03:03.7]} 11... dxc4 {[%clk 0:03:10.3]} 12. Bxc4 {[%clk 0:03:04.5]}
12... Nh5 {[%clk 0:03:11.8]} 13. O-O {[%clk 0:02:59.2]} 13... Nxf4 {[%clk
0:03:12.8]} 14. exf4 {[%clk 0:03:00.2]} 14... Rd8 {[%clk 0:02:53.4]} 15. Rxd8+
{[%clk 0:02:54.4]} 15... Qxd8 {[%clk 0:02:54.4]} 16. Rd1 {[%clk 0:02:54.5]}
16... Qc7 {[%clk 0:02:40.6]} 17. Qe4 {[%clk 0:02:36.7]} 17... Bd7 {[%clk
0:02:22.5]} 18. Nb5 {[%clk 0:02:34.3]} 18... Qc8 {[%clk 0:02:18.1]} 19. Nd6
{[%clk 0:01:46.1]} 19... Bxd6 {[%clk 0:02:09.5]} 20. Rxd6 {[%clk 0:01:47.1]}
20... h6 {[%clk 0:02:03.8]} 21. h3 {[%clk 0:01:42.2]} 21... Qc7 {[%clk
0:01:58.7]} 22. Qd3 {[%clk 0:01:37.5]} 22... Be8 {[%clk 0:01:52.6]} 23. Bb5
{[%clk 0:01:29.1]} 23... Rc8 {[%clk 0:01:50.8]} 24. Kh2 {[%clk 0:01:13.8]} 24...
a6 {[%clk 0:01:03]} 25. Bxc6 {[%clk 0:01:14.3]} 25... Bxc6 {[%clk 0:01:04.3]}
26. Ne5 {[%clk 0:01:16]} 26... Be8 {[%clk 0:01:05.5]} 27. Qd4 {[%clk 0:01:12.6]}
27... a5 {[%clk 0:00:56.6]} 28. b4 {[%clk 0:01:09.9]} 28... axb4 {[%clk
0:00:55.4]} 29. axb4 {[%clk 0:01:10.4]} 29... b5 {[%clk 0:00:56.9]} 30. Nd3
{[%clk 0:01:03.3]} 30... Qc4 {[%clk 0:00:55.6]} 31. Nc5 {[%clk 0:00:56.6]} 31...
Qxd4 {[%clk 0:00:54.4]} 32. Rxd4 {[%clk 0:00:57.7]} 32... Ra8 {[%clk 0:00:54.7]}
33. Rd6 {[%clk 0:00:54.8]} 33... Kf8 {[%clk 0:00:52.1]} 34. Kg3 {[%clk
0:00:43.1]} 34... Ra2 {[%clk 0:00:49.5]} 35. h4 {[%clk 0:00:40.4]} 35... Rb2
{[%clk 0:00:49.5]} 36. Nd3 {[%clk 0:00:37.2]} 36... Rb3 {[%clk 0:00:49.6]} 37.
f3 {[%clk 0:00:38.2]} 37... Ke7 {[%clk 0:00:49]} 38. Rd4 {[%clk 0:00:39.2]}
38... Bc6 {[%clk 0:00:47.5]} 39. Ne5 {[%clk 0:00:35.3]} 39... Be8 {[%clk
0:00:42.7]} 40. Nd3 {[%clk 0:00:34.4]} 40... Rb1 {[%clk 0:00:42.1]} 41. Kf2
{[%clk 0:00:27.1]} 41... Bc6 {[%clk 0:00:40.3]} 42. Ne5 {[%clk 0:00:27.5]} 42...
Be8 {[%clk 0:00:39.5]} 43. g4 {[%clk 0:00:28.1]} 43... f6 {[%clk 0:00:37.3]} 44.
Nd3 {[%clk 0:00:27.9]} 44... Bc6 {[%clk 0:00:23]} 45. Ke3 {[%clk 0:00:17]} 45...
h5 {[%clk 0:00:20.1]} 46. gxh5 {[%clk 0:00:14.3]} 46... Rh1 {[%clk 0:00:21.2]}
47. f5 {[%clk 0:00:10.5]} 47... e5 {[%clk 0:00:19.2]} 48. Rg4 {[%clk 0:00:11.4]}
48... Kf7 {[%clk 0:00:18.1]} 49. Nf2 {[%clk 0:00:11.5]} 49... Re1+ {[%clk
0:00:15.5]} 50. Kd2 {[%clk 0:00:11.8]} 50... Ra1 {[%clk 0:00:15.6]} 51. Ne4
{[%clk 0:00:12.7]} 51... Ra2+ {[%clk 0:00:12.7]} 52. Ke1 {[%clk 0:00:09.7]}
52... Bd5 {[%clk 0:00:09.7]} 53. Nd6+ {[%clk 0:00:09.7]} 53... Kf8 {[%clk
0:00:11.1]} 54. Nxb5 {[%clk 0:00:10.3]} 54... Bxf3 {[%clk 0:00:11.7]} 55. Rg3
{[%clk 0:00:11.5]} 55... e4 {[%clk 0:00:11.4]} 56. Nd4 {[%clk 0:00:11]} 56...
Bxh5 {[%clk 0:00:11.1]} 57. Re3 {[%clk 0:00:12]} 57... Ke7 {[%clk 0:00:10.5]}
58. Rxe4+ {[%clk 0:00:12.4]} 58... Kd6 {[%clk 0:00:12.2]} 59. Ne6 {[%clk
0:00:13.6]} 59... Kd5 {[%clk 0:00:11.3]} 60. Re3 {[%clk 0:00:12.8]} 60... Bg4
{[%clk 0:00:11.4]} 61. Nxg7 {[%clk 0:00:12.2]} 61... Rh2 {[%clk 0:00:11.4]} 62.
h5 {[%clk 0:00:11.9]} 62... Bxh5 {[%clk 0:00:12.6]} 63. Nxh5 {[%clk 0:00:10.9]}
63... Rxh5 {[%clk 0:00:14.5]} 64. Rf3 {[%clk 0:00:11.8]} 64... Ke4 {[%clk
0:00:15.1]} 65. Rf2 {[%clk 0:00:12.7]} 65... Rxf5 {[%clk 0:00:15.2]} 66. Rxf5
{[%clk 0:00:12.8]} 66... Kxf5 {[%clk 0:00:17.1]} 67. Kf2 {[%clk 0:00:13.1]}
67... Ke5 {[%clk 0:00:19]} 68. Kf3 {[%clk 0:00:14.7]} 68... Kd5 {[%clk
0:00:20.9]} 69. Kf4 {[%clk 0:00:15.4]} 69... Kc4 {[%clk 0:00:22.2]} 70. Kf5
{[%clk 0:00:17.1]} 70... Kxb4 {[%clk 0:00:23.6]} 71. Kxf6 {[%clk 0:00:18.8]}
1/2-1/2

[Event "***Titled Tuesday 3|2 Blitz"]
[Site "Chess.com"]
[Date "2017.02.07"]
[Round "5"]
[White "Gergo85"]
[Black "Evgeny81"]
[Result "1-0"]
[WhiteElo "2427"]
[BlackElo "2392"]
[TimeControl "180+2"]
[EndTime "14:14:48 PST"]
[Termination "Gergo85 won by resignation"]

1. e4 {[%clk 0:03:02]} 1... c6 {[%clk 0:03:00.7]} 2. Nc3 {[%clk 0:03:01.7]} 2...
d5 {[%clk 0:03:00.9]} 3. d4 {[%clk 0:03:00.1]} 3... dxe4 {[%clk 0:03:00.9]} 4.
Nxe4 {[%clk 0:03:01.7]} 4... Bf5 {[%clk 0:03:02.5]} 5. Qf3 {[%clk 0:03:02.7]}
5... e6 {[%clk 0:03:00.3]} 6. Ne2 {[%clk 0:03:01.2]} 6... Nd7 {[%clk 0:02:56.3]}
7. N2g3 {[%clk 0:02:58.3]} 7... Bg6 {[%clk 0:02:57.3]} 8. h4 {[%clk 0:02:59.1]}
8... Ngf6 {[%clk 0:02:52.2]} 9. h5 {[%clk 0:02:50.4]} 9... Bxe4 {[%clk
0:02:52.5]} 10. Nxe4 {[%clk 0:02:51.3]} 10... Nxe4 {[%clk 0:02:53.6]} 11. Qxe4
{[%clk 0:02:52.5]} 11... Nf6 {[%clk 0:02:52.6]} 12. Qd3 {[%clk 0:02:39.2]} 12...
Qa5+ {[%clk 0:02:28.9]} 13. Bd2 {[%clk 0:02:35]} 13... Bb4 {[%clk 0:02:29.5]}
14. c3 {[%clk 0:02:34.1]} 14... Be7 {[%clk 0:02:30.4]} 15. Be2 {[%clk
0:02:25.7]} 15... O-O-O {[%clk 0:02:17.5]} 16. b4 {[%clk 0:01:44.2]} 16... Qf5
{[%clk 0:02:01.6]} 17. Qxf5 {[%clk 0:01:03.1]} 17... exf5 {[%clk 0:02:02.8]} 18.
Bg5 {[%clk 0:01:02.2]} 18... Rhe8 {[%clk 0:01:58.4]} 19. Bxf6 {[%clk 0:00:58.1]}
19... Bxf6 {[%clk 0:01:59.2]} 20. Kd2 {[%clk 0:00:57.5]} 20... Bxd4 {[%clk
0:01:39.8]} 21. cxd4 {[%clk 0:00:57.6]} 21... Rxd4+ {[%clk 0:01:41.3]} 22. Bd3
{[%clk 0:00:59]} 22... Red8 {[%clk 0:01:40.1]} 23. Rh3 {[%clk 0:01:00]} 23...
Rxb4 {[%clk 0:01:41.3]} 24. Kc3 {[%clk 0:00:53.8]} 24... Rf4 {[%clk 0:01:42.1]}
25. Rf3 {[%clk 0:00:37.3]} 25... Rxf3 {[%clk 0:01:42.3]} 26. gxf3 {[%clk
0:00:39.2]} 26... g6 {[%clk 0:01:41.4]} 27. Bc4 {[%clk 0:00:35.5]} 27... Rd7
{[%clk 0:01:36.3]} 28. a4 {[%clk 0:00:32.6]} 28... Kd8 {[%clk 0:01:28.2]} 29.
Re1 {[%clk 0:00:31.6]} 29... Re7 {[%clk 0:01:25.2]} 30. Rd1+ {[%clk 0:00:16.8]}
30... Kc7 {[%clk 0:01:26.2]} 31. Rd2 {[%clk 0:00:08.8]} 31... a5 {[%clk
0:01:22.2]} 32. Rd1 {[%clk 0:00:09]} 32... f6 {[%clk 0:01:12.8]} 33. hxg6 {[%clk
0:00:09]} 33... hxg6 {[%clk 0:01:13.5]} 34. Rh1 {[%clk 0:00:07]} 34... Kd6
{[%clk 0:01:00.5]} 35. Rh6 {[%clk 0:00:07.4]} 35... Rg7 {[%clk 0:01:01.7]} 36.
Rh8 {[%clk 0:00:06.7]} 36... Kc5 {[%clk 0:01:01.4]} 37. Re8 {[%clk 0:00:03.5]}
37... g5 {[%clk 0:00:53.8]} 38. Bd3 {[%clk 0:00:03.9]} 38... f4 {[%clk
0:00:47.4]} 39. Re6 {[%clk 0:00:04.6]} 39... Rf7 {[%clk 0:00:47.2]} 40. Bg6
{[%clk 0:00:05.1]} 40... Rf8 {[%clk 0:00:47.5]} 41. Re7 {[%clk 0:00:06.1]} 41...
b5 {[%clk 0:00:48.7]} 42. axb5 {[%clk 0:00:07.4]} 42... cxb5 {[%clk 0:00:50.3]}
43. Rc7+ {[%clk 0:00:08.8]} 43... Kb6 {[%clk 0:00:51.5]} 44. Re7 {[%clk
0:00:08.8]} 44... Rc8+ {[%clk 0:00:52.5]} 45. Kb2 {[%clk 0:00:09]} 45... Rc6
{[%clk 0:00:52.1]} 46. Be8 {[%clk 0:00:09.9]} 46... Rd6 {[%clk 0:00:52.6]} 47.
Bg6 {[%clk 0:00:09.5]} 47... a4 {[%clk 0:00:52.3]} 48. Be4 {[%clk 0:00:09.7]}
48... Ka5 {[%clk 0:00:50.6]} 49. Kc3 {[%clk 0:00:11]} 49... b4+ {[%clk
0:00:51.3]} 50. Kc4 {[%clk 0:00:12.4]} 50... b3 {[%clk 0:00:43.8]} 51. Ra7+
{[%clk 0:00:13.3]} 51... Ra6 {[%clk 0:00:44.8]} 52. Rxa6+ {[%clk 0:00:14.4]}
52... Kxa6 {[%clk 0:00:45.9]} 53. Kb4 {[%clk 0:00:15.9]} 53... b2 {[%clk
0:00:39.7]} 54. Kxa4 {[%clk 0:00:16.5]} 54... Kb6 {[%clk 0:00:41.4]} 55. Kb3
{[%clk 0:00:17.4]} 55... Kc5 {[%clk 0:00:43.1]} 56. Kxb2 {[%clk 0:00:18.6]}
56... Kd4 {[%clk 0:00:44.7]} 57. Kc2 {[%clk 0:00:18.6]} 57... g4 {[%clk
0:00:45.9]} 58. Kd2 {[%clk 0:00:19.1]} 58... Ke5 {[%clk 0:00:44.7]} 59. Bb7
{[%clk 0:00:18.8]} 59... f5 {[%clk 0:00:43.7]} 60. Ke2 {[%clk 0:00:19.4]} 60...
g3 {[%clk 0:00:43.3]} 61. fxg3 {[%clk 0:00:20.1]} 61... fxg3 {[%clk 0:00:44.7]}
62. Kf1 {[%clk 0:00:21.5]} 62... f4 {[%clk 0:00:45.8]} 63. Kg2 {[%clk
0:00:22.8]} 63... Kd4 {[%clk 0:00:47]} 64. Be4 {[%clk 0:00:23.6]} 64... Ke3
{[%clk 0:00:48.2]} 65. Bf5 {[%clk 0:00:24.8]} 65... Ke2 {[%clk 0:00:49.4]} 66.
Be6 {[%clk 0:00:25.8]} 66... Ke3 {[%clk 0:00:50.8]} 67. Bc4 {[%clk 0:00:26.6]}
67... Kd4 {[%clk 0:00:50.7]} 68. Bf1 {[%clk 0:00:27.2]} 68... Ke3 {[%clk
0:00:52.2]} 69. Bb5 {[%clk 0:00:28.2]} 69... Kd4 {[%clk 0:00:50.2]} 70. Bd7
{[%clk 0:00:29]} 70... Ke3 {[%clk 0:00:51.5]} 71. Bh3 {[%clk 0:00:29.8]} 71...
Ke2 {[%clk 0:00:52.7]} 72. Bg4 {[%clk 0:00:30.5]} 72... Ke3 {[%clk 0:00:54]} 73.
Kf1 {[%clk 0:00:26.7]} 73... Kd2 {[%clk 0:00:55.3]} 74. Bh3 {[%clk 0:00:26]}
74... Ke3 {[%clk 0:00:55.8]} 75. Bg2 {[%clk 0:00:27.1]} 75... Kd2 {[%clk
0:00:57]} 76. Bh1 {[%clk 0:00:26.5]} 76... Kd1 {[%clk 0:00:55.7]} 77. Kg2 {[%clk
0:00:25.9]} 77... Ke2 {[%clk 0:00:56.4]} 78. Kh3 {[%clk 0:00:17.3]} 78... Kf2
{[%clk 0:00:54.1]} 79. Kg4 {[%clk 0:00:18.5]} 79... Ke3 {[%clk 0:00:50.2]} 80.
Kf5 {[%clk 0:00:19.7]} 1-0